fUSD/lending_fUSD_20240708
["ID","MTS","AMOUNT","RATE_DAILY","PERIOD"]
[331481048,1720438024636,-216.49936137,0.00050136,120]
[331481049,1720438024674,-500.0,0.00050136,120]
[331481050,1720438024712,-500.0,0.00050136,120]
[331481051,1720438024753,-1418.14,0.00050136,120]
[331481052,1720438024792,-664.42,0.00050136,120]
[331481053,1720438024829,-529.96,0.00050136,120]
[331481054,1720438024867,-624.06,0.00050136,120]
[331481055,1720438024905,-500.0,0.00050136,120]
[331481056,1720438024941,-500.0,0.00050136,120]
[331481057,1720438024978,-500.0,0.00050136,120]
[331481058,1720438025016,-1837.3,0.00050136,120]
[331481059,1720438025055,-1202.89,0.00050136,120]
[331481060,1720438025093,-500.0,0.00050136,120]
[331481061,1720438025130,-973.5,0.00050136,120]
[331481062,1720438025166,-500.0,0.00050136,120]
[331481063,1720438025202,-500.0,0.00050136,120]
[331481064,1720438025242,-500.0,0.00050136,120]
[331481065,1720438025280,-1140.41,0.00050136,120]
[331481066,1720438025322,-500.0,0.00050136,120]
[331481067,1720438025360,-3258.9,0.00050136,120]
[331481068,1720438025397,-909.76,0.00050136,120]
[331481069,1720438025435,-500.0,0.00050136,120]
[331481070,1720438025472,-500.0,0.00050136,120]
[331481071,1720438025509,-531.73,0.00050136,120]
[331481072,1720438025546,-500.0,0.00050136,120]
[331481073,1720438025764,-1448.05,0.00050136,120]
[331481074,1720438025804,-1331.04,0.00050136,120]
[331481075,1720438025843,-500.0,0.00050136,120]
[331481076,1720438025881,-500.0,0.00050136,120]
[331481077,1720438025920,-673.04,0.00050136,120]
[331481078,1720438025959,-907.76,0.00050136,120]
[331481079,1720438025996,-500.0,0.00050136,120]
[331481080,1720438026034,-500.0,0.00050136,120]
[331481081,1720438026070,-500.0,0.00050136,120]
[331481082,1720438026106,-500.0,0.00050136,120]
[331481083,1720438026142,-997.68,0.00050136,120]
[331481084,1720438026179,-500.0,0.00050136,120]
[331481085,1720438026216,-500.0,0.00050136,120]
[331481086,1720438026255,-500.0,0.00050136,120]
[331481087,1720438026290,-500.0,0.00050136,120]
[331481088,1720438026328,-500.0,0.00050136,120]
[331481089,1720438026367,-1517.56,0.00050136,120]
[331481090,1720438026403,-500.0,0.00050136,120]
[331481091,1720438026439,-646.53,0.00050136,120]
[331481092,1720438026476,-500.0,0.00050136,120]
[331481093,1720438026511,-500.0,0.00050136,120]
[331481094,1720438026546,-580.66,0.00050136,120]
[331481095,1720438026582,-500.0,0.00050136,120]
[331481096,1720438026617,-766.18,0.00050136,120]
[331481097,1720438026652,-612.85,0.00050136,120]
[331481098,1720438026688,-2991.81,0.00050136,120]
[331481099,1720438026725,-1069.21,0.00050136,120]
[331481100,1720438026760,-949.68,0.00050136,120]
[331481101,1720438026796,-2078.73,0.00050136,120]
[331481102,1720438026833,-552.22771682,0.00050136,120]
[331481103,1720438026868,-587.75,0.00050136,120]
[331481104,1720438026905,-606.14,0.00050136,120]
[331481105,1720438026942,-500.0,0.00050136,120]
[331481106,1720438026978,-1492.0,0.00050136,120]
[331481107,1720438027013,-500.0,0.00050136,120]
[331481108,1720438027048,-500.0,0.00050136,120]
[331481109,1720438027084,-2128.57,0.00050136,120]
[331481110,1720438027123,-500.0,0.00050136,120]
[331481111,1720438027159,-500.0,0.00050136,120]
[331481112,1720438027195,-500.0,0.00050136,120]
[331481113,1720438027234,-500.0,0.00050136,120]
[331481114,1720438027271,-500.0,0.00050136,120]
[331481115,1720438027309,-500.0,0.00050136,120]
[331481116,1720438027344,-500.0,0.00050136,120]
[331481117,1720438027379,-522.56,0.00050136,120]
[331481118,1720438027416,-754.88,0.00050136,120]
[331481119,1720438027452,-537.16,0.00050136,120]
[331481120,1720438027490,-500.0,0.00050136,120]
[331481121,1720438027527,-500.0,0.00050136,120]
[331481122,1720438027565,-500.0,0.00050136,120]
[331481123,1720438027607,-221.63914789,0.00050136,120]
[331481124,1720438027644,-500.0,0.00050136,120]
[331481125,1720438027680,-500.0,0.00050136,120]
[331481126,1720438027716,-500.0,0.00050136,120]
[331481127,1720438027754,-500.0,0.00050136,120]
[331481128,1720438027789,-500.0,0.00050136,120]
[331481129,1720438027827,-3776.54,0.00050136,120]
[331481130,1720438027863,-1795.75,0.00050136,120]
[331481131,1720438027901,-500.0,0.00050136,120]
[331481132,1720438027936,-500.0,0.00050136,120]
[331481133,1720438027973,-754.18,0.00050136,120]
[331481134,1720438028011,-500.0,0.00050136,120]
[331481135,1720438028046,-500.0,0.00050136,120]
[331481136,1720438028081,-500.0,0.00050136,120]
[331481137,1720438028116,-500.0,0.00050136,120]
[331481138,1720438028150,-266.46591071,0.00050136,120]
[331481139,1720438028183,-500.0,0.00050136,120]
[331481140,1720438028218,-500.0,0.00050136,40]
[331481141,1720438028252,-500.0,0.00050136,120]
[331481142,1720438028285,-500.0,0.00050136,120]
[331481143,1720438028323,-1684.15,0.00050136,120]
[331481144,1720438028358,-500.0,0.00050136,120]
[331481145,1720438028392,-639.54,0.00050136,120]
[331481146,1720438028426,-500.0,0.00050136,120]
[331481147,1720438028461,-500.0,0.00050136,120]
[331481148,1720438028496,-500.0,0.00050136,120]
[331481149,1720438028529,-1793.9,0.00050136,120]
[331481150,1720438028563,-500.0,0.00050136,120]
[331481151,1720438028598,-500.0,0.00050136,120]
[331481152,1720438028632,-1733.81,0.00050136,120]
[331481153,1720438028667,-626.58,0.00050136,120]
[331481154,1720438028702,-500.0,0.00050136,120]
[331481155,1720438028738,-1653.08,0.00050136,120]
[331481156,1720438028773,-738.49,0.00050136,120]
[331481157,1720438028808,-500.0,0.00050136,120]
[331481158,1720438028850,-500.0,0.00050136,120]
[331481159,1720438028890,-500.0,0.00050136,120]
[331481160,1720438028928,-500.0,0.00050136,120]
[331481161,1720438028966,-500.0,0.00050136,120]
[331481162,1720438029003,-500.0,0.00050136,120]
[331481163,1720438029040,-515.53,0.00050136,120]
[331481164,1720438029077,-500.0,0.00050136,120]
[331481165,1720438029112,-500.0,0.00050136,120]
[331481166,1720438029149,-1557.0,0.00050136,120]
[331481167,1720438029186,-802.08,0.00050136,120]
[331481168,1720438029222,-684.17,0.00050136,120]
[331481169,1720438029259,-500.0,0.00050136,120]
[331481170,1720438029296,-500.0,0.00050136,120]
[331481171,1720438029332,-3130.17,0.00050136,120]
[331481172,1720438029370,-500.0,0.00050136,120]
[331481173,1720438029406,-468.97177974,0.00050136,120]
[331481174,1720438029443,-532.95,0.00050136,120]
[331481175,1720438029481,-500.0,0.00050136,120]
[331481176,1720438029517,-500.0,0.00050136,120]
[331481177,1720438029554,-502.08,0.00050136,120]
[331481178,1720438029591,-500.0,0.00050136,120]
[331481179,1720438029817,-500.0,0.00050136,120]
[331481180,1720438029861,-500.0,0.00050136,120]
[331481181,1720438029901,-500.0,0.00050136,120]
[331481182,1720438029939,-500.0,0.00050136,120]
[331481183,1720438029976,-1335.76,0.00050136,120]
[331481184,1720438030015,-626.33,0.00050136,120]
[331481185,1720438030052,-1278.56,0.00050136,120]
[331481186,1720438030088,-795.89,0.00050136,120]
[331481187,1720438030123,-500.0,0.00050136,120]
[331481188,1720438030160,-1183.41,0.00050136,120]
[331481189,1720438030199,-500.0,0.00050136,120]
[331481190,1720438030241,-500.0,0.00050136,120]
[331481191,1720438030280,-500.0,0.00050136,120]
[331481192,1720438030324,-640.82716675,0.00050136,120]
[331481193,1720438030365,-500.0,0.00050136,120]
[331481194,1720438030403,-500.0,0.00050136,120]
[331481195,1720438030442,-500.0,0.00050136,120]
[331481196,1720438030482,-500.0,0.00050136,120]
[331481197,1720438030525,-500.0,0.00050136,120]
[331481198,1720438030566,-500.0,0.00050136,120]
[331481199,1720438030612,-500.0,0.00050136,120]
[331481200,1720438030653,-500.0,0.00050136,120]
[331481201,1720438030694,-500.0,0.00050136,120]
[331481202,1720438030733,-500.0,0.00050136,120]
[331481203,1720438030774,-500.0,0.00050136,120]
[331481204,1720438030813,-350.98,0.00050136,120]
[331481205,1720438030854,-500.0,0.00050136,120]
[331481206,1720438030891,-1599.68,0.00050136,120]
[331481207,1720438030928,-3526.41,0.00050136,120]
[331481208,1720438030970,-697.42,0.00050136,120]
[331481209,1720438031007,-500.0,0.00050136,120]
[331481210,1720438031043,-587.27,0.00050136,120]
[331481211,1720438031078,-500.0,0.00050136,120]
[331481212,1720438031114,-500.0,0.00050136,120]
[331481213,1720438031151,-500.0,0.00050136,120]
[331481214,1720438031188,-500.0,0.00050136,120]
[331481215,1720438031226,-2679.44,0.00050136,120]
[331481216,1720438031263,-1492.66,0.00050136,120]
[331481217,1720438031297,-527.7,0.00050136,120]
[331481218,1720438031332,-3645.63,0.00050136,120]
[331481219,1720438031367,-500.0,0.00050136,120]
[331481220,1720438031406,-500.0,0.00050136,120]
[331481221,1720438031440,-500.0,0.00050136,120]
[331481222,1720438031476,-500.0,0.00050136,120]
[331481223,1720438031515,-893.27,0.00050136,120]
[331481224,1720438031549,-667.35,0.00050136,120]
[331481225,1720438031583,-591.72,0.00050136,120]
[331481226,1720438031620,-503.95508812,0.00050136,120]
[331481227,1720438031657,-500.0,0.00050136,120]
[331481228,1720438031694,-500.0,0.00050136,120]
[331481229,1720438031731,-510.27,0.00050136,120]
[331481230,1720438031767,-702.49,0.00050136,120]
[331481231,1720438031802,-687.27,0.00050136,120]
[331481232,1720438031837,-500.0,0.00050136,120]
[331481233,1720438031874,-500.0,0.00050136,120]
[331481234,1720438031910,-500.0,0.00050136,120]
[331481235,1720438031947,-500.0,0.00050136,120]
[331481236,1720438031983,-577.52,0.00050136,120]
[331481237,1720438032019,-500.0,0.00050136,120]
[331481238,1720438032054,-710.2,0.00050136,120]
[331481239,1720438032088,-500.0,0.00050136,120]
[331481240,1720438032123,-500.0,0.00050136,120]
[331481241,1720438032160,-500.0,0.00050136,120]
[331481242,1720438032197,-578.06,0.00050136,120]
[331481243,1720438032237,-500.0,0.00050136,120]
[331481244,1720438032279,-929.58,0.00050136,120]
[331481245,1720438032318,-500.0,0.00050136,120]
[331481246,1720438032358,-500.0,0.00050136,120]
[331481247,1720438032394,-737.43,0.00050136,120]
[331481248,1720438032429,-1373.64,0.00050136,120]
[331481249,1720438032464,-539.13,0.00050136,120]
[331481250,1720438032500,-628.14,0.00050136,120]
[331481251,1720438032534,-500.0,0.00050136,120]
[331481252,1720438032567,-2378.31,0.00050136,120]
[331481253,1720438032605,-618.5,0.00050136,120]
[331481254,1720438032640,-500.0,0.00050136,120]
[331481255,1720438032673,-500.0,0.00050136,120]
[331481256,1720438032707,-500.0,0.00050136,120]
[331481257,1720438032739,-500.0,0.00050136,120]
[331481258,1720438032773,-604.87,0.00050136,120]
[331481259,1720438032807,-500.0,0.00050136,120]
[331481260,1720438032840,-500.0,0.00050136,120]
[331481261,1720438032875,-500.0,0.00050136,120]
[331481262,1720438032907,-500.0,0.00050136,120]
[331481263,1720438032942,-500.0,0.00050136,120]
[331481264,1720438032979,-500.0,0.00050136,120]
[331481265,1720438033012,-575.43,0.00050136,120]
[331481266,1720438033047,-3249.91,0.00050136,120]
[331481267,1720438033082,-2121.94,0.00050136,120]
[331481268,1720438033119,-500.0,0.00050136,120]
[331481269,1720438033150,-1484.69,0.00050136,120]
[331481270,1720438033182,-500.0,0.00050136,120]
[331481271,1720438033217,-1415.03,0.00050136,120]
[331481272,1720438033250,-500.0,0.00050136,120]
[331481273,1720438033280,-500.0,0.00050136,120]
[331481274,1720438033313,-500.0,0.00050136,120]
[331481275,1720438033349,-500.0,0.00050136,120]
[331481276,1720438033380,-500.0,0.00050136,120]
[331481277,1720438033413,-606.58,0.00050136,120]
[331481278,1720438033447,-500.0,0.00050136,120]
[331481279,1720438033482,-500.0,0.00050136,120]
[331481280,1720438033515,-500.0,0.00050136,120]
[331481281,1720438033548,-1775.66,0.00050136,120]
[331481282,1720438033581,-2617.01,0.00050136,120]
[331481283,1720438033800,-500.0,0.00050136,120]
[331481284,1720438033838,-500.0,0.00050136,120]
[331481285,1720438033876,-500.0,0.00050136,120]
[331481286,1720438033914,-500.0,0.00050136,120]
[331481287,1720438033953,-817.76,0.00050136,120]
[331481288,1720438033991,-500.0,0.00050136,120]
[331481289,1720438034027,-500.0,0.00050136,120]
[331481290,1720438034063,-500.0,0.00050136,120]
[331481291,1720438034101,-500.0,0.00050136,120]
[331481292,1720438034138,-500.0,0.00050136,120]
[331481293,1720438034173,-500.0,0.00050136,120]
[331481294,1720438034208,-500.0,0.00050136,120]
[331481295,1720438034250,-500.0,0.00050136,120]
[331481296,1720438034287,-500.0,0.00050136,120]
[331481297,1720438034327,-670.77,0.00050136,120]
[331481298,1720438034364,-4545.65,0.00050136,120]
[331481299,1720438034405,-500.0,0.00050136,120]
[331481300,1720438034444,-500.0,0.00050136,120]
[331481301,1720438034483,-507.52933939,0.00050136,120]
[331481302,1720438034524,-1428.1,0.00050136,120]
[331481303,1720438034563,-5370.77,0.00050136,120]
[331481304,1720438034604,-500.0,0.00050136,120]
[331481305,1720438034641,-500.0,0.00050136,120]
[331481306,1720438034678,-1665.53,0.00050136,120]
[331481307,1720438034717,-1529.14,0.00050136,120]
[331481308,1720438034752,-500.0,0.00050136,120]
[331481309,1720438034788,-500.0,0.00050136,120]
[331481310,1720438034827,-1851.79,0.00050136,120]
[331481311,1720438034862,-705.82,0.00050136,120]
[331481312,1720438034896,-810.35,0.00050136,120]
[331481313,1720438034931,-612.18,0.00050136,120]
[331481314,1720438034969,-592.08,0.00050136,120]
[331481315,1720438035004,-500.0,0.00050136,120]
[331481316,1720438035040,-638.54,0.00050136,120]
[331481317,1720438035078,-2810.55,0.00050136,120]
[331481318,1720438035115,-500.0,0.00050136,120]
[331481319,1720438035152,-500.0,0.00050136,120]
[331481320,1720438035188,-4159.47,0.00050136,120]
[331481321,1720438035226,-500.0,0.00050136,120]
[331481322,1720438035262,-1771.73,0.00050136,120]
[331481323,1720438035298,-500.0,0.00050136,120]
[331481324,1720438035336,-500.0,0.00050136,120]
[331481325,1720438035373,-500.0,0.00050136,120]
[331481326,1720438035408,-500.0,0.00050136,120]
[331481327,1720438035444,-472.20015557,0.00050136,120]
[331481328,1720438035479,-500.0,0.00050136,120]
[331481329,1720438035514,-500.0,0.00050136,120]
[331481330,1720438035551,-500.0,0.00050136,120]
[331481331,1720438035589,-599.01,0.00050136,120]
[331481332,1720438035626,-500.0,0.00050136,120]
[331481333,1720438035662,-786.1,0.00050136,120]
[331481334,1720438035699,-500.0,0.00050136,120]
[331481335,1720438035737,-783.57,0.00050136,120]
[331481336,1720438035773,-500.0,0.00050136,120]
[331481337,1720438035809,-1980.59,0.00050136,120]
[331481338,1720438035846,-500.0,0.00050136,120]
[331481339,1720438035882,-500.0,0.00050136,120]
[331481340,1720438035919,-500.0,0.00050136,120]
[331481341,1720438035956,-4167.38,0.00050136,120]
[331481342,1720438035993,-500.0,0.00050136,120]
[331481343,1720438036028,-588.73,0.00050136,120]
[331481344,1720438036063,-500.0,0.00050136,120]
[331481345,1720438036100,-500.0,0.00050136,120]
[331481346,1720438036136,-2910.97,0.00050136,120]
[331481347,1720438036171,-500.0,0.00050136,120]
[331481348,1720438036206,-527.34,0.00050136,120]
[331481349,1720438036247,-1978.56,0.00050136,120]
[331481350,1720438036282,-500.0,0.00050136,120]
[331481351,1720438036320,-500.0,0.00050136,120]
[331481352,1720438036363,-2309.55,0.00050136,120]
[331481353,1720438036399,-500.0,0.00050136,120]
[331481354,1720438036433,-500.0,0.00050136,120]
[331481355,1720438036468,-500.0,0.00050136,120]
[331481356,1720438036506,-500.0,0.00050136,120]
[331481357,1720438036543,-500.0,0.00050136,120]
[331481358,1720438036588,-500.0,0.00050136,120]
[331481359,1720438036626,-5737.69,0.00050136,120]
[331481360,1720438036664,-500.0,0.00050136,120]
[331481361,1720438036701,-4114.02,0.00050136,120]
[331481362,1720438036737,-500.0,0.00050136,120]
[331481363,1720438036777,-645.40278406,0.00050136,120]
[331481364,1720438036815,-500.0,0.00050136,120]
[331481365,1720438036858,-500.0,0.00050136,120]
[331481366,1720438036896,-500.0,0.00050136,120]
[331481367,1720438036935,-500.0,0.00050136,120]
[331481368,1720438036977,-649.04,0.00050136,120]
[331481369,1720438037017,-500.0,0.00050136,120]
[331481370,1720438037056,-1257.97,0.00050136,120]
[331481371,1720438037094,-4945.17,0.00050136,120]
[331481372,1720438037130,-500.0,0.00050136,120]
[331481373,1720438037166,-3615.09,0.00050136,120]
[331481374,1720438037204,-500.0,0.00050136,120]
[331481375,1720438037245,-150.0,0.00050136,120]
[331481376,1720438037283,-242.04709148,0.00050136,120]
[331481377,1720438037322,-2750.23,0.00050136,120]
[331481378,1720438037362,-1195.11,0.00050136,120]
[331481379,1720438037397,-500.0,0.00050136,120]
[331481380,1720438037433,-500.0,0.00050136,120]
[331481381,1720438037469,-500.0,0.00050136,120]
[331481382,1720438037505,-2303.83,0.00050136,120]
[331481383,1720438037539,-500.0,0.00050136,120]
[331481384,1720438037577,-1030.01,0.00050136,120]
[331481385,1720438037614,-500.0,0.00050136,120]
[331481386,1720438037649,-500.0,0.00050136,120]
[331481387,1720438037684,-500.0,0.00050136,120]
[331481388,1720438037908,-1108.77,0.00050136,120]
[331481389,1720438037948,-500.0,0.00050136,120]
[331481390,1720438037989,-1037.41,0.00050136,120]
[331481391,1720438038027,-500.0,0.00050136,120]
[331481392,1720438038065,-1129.3,0.00050136,120]
[331481393,1720438038105,-401.42323328,0.00050136,120]
[331481394,1720438038144,-500.0,0.00050136,120]
[331481395,1720438038179,-500.0,0.00050136,120]
[331481396,1720438038216,-500.0,0.00050136,120]
[331481397,1720438038252,-500.0,0.00050136,120]
[331481398,1720438038285,-500.0,0.00050136,120]
[331481399,1720438038320,-500.0,0.00050136,120]
[331481400,1720438038354,-500.0,0.00050136,120]
[331481401,1720438038387,-3645.11,0.00050136,120]
[331481402,1720438038424,-500.0,0.00050136,120]
[331481403,1720438038459,-537.46,0.00050136,120]
[331481404,1720438038493,-500.0,0.00050136,120]
[331481405,1720438038528,-500.0,0.00050136,120]
[331481406,1720438038563,-779.78,0.00050136,120]
[331481407,1720438038599,-1029.1,0.00050136,120]
[331481408,1720438038633,-500.0,0.00050136,120]
[331481409,1720438038669,-2932.79,0.00050136,120]
[331481410,1720438038704,-502.54306901,0.00050136,120]
[331481411,1720438038740,-724.0,0.00050136,120]
[331481412,1720438038776,-500.0,0.00050136,120]
[331481413,1720438038814,-500.0,0.00050136,120]
[331481414,1720438038857,-500.0,0.00050136,120]
[331481415,1720438038898,-745.19,0.00050136,120]
[331481416,1720438038937,-500.0,0.00050136,120]
[331481417,1720438038975,-500.0,0.00050136,120]
[331481418,1720438039011,-777.31,0.00050136,120]
[331481419,1720438039048,-2842.73,0.00050136,120]
[331481420,1720438039086,-731.02,0.00050136,120]
[331481421,1720438039122,-3212.9,0.00050136,120]
[331481422,1720438039159,-500.0,0.00050136,120]
[331481423,1720438039196,-970.78,0.00050136,120]
[331481424,1720438039233,-500.0,0.00050136,120]
[331481425,1720438039268,-500.0,0.00050136,120]
[331481426,1720438039305,-500.0,0.00050136,120]
[331481427,1720438039342,-500.0,0.00050136,120]
[331481428,1720438039379,-500.0,0.00050136,120]
[331481429,1720438039416,-500.0,0.00050136,120]
[331481430,1720438039452,-866.32,0.00050136,120]
[331481431,1720438039489,-656.72,0.00050136,120]
[331481432,1720438039526,-500.0,0.00050136,120]
[331481433,1720438039563,-2301.35,0.00050136,120]
[331481434,1720438039603,-500.0,0.00050136,120]
[331481435,1720438039641,-1651.75,0.00050136,120]
[331481436,1720438039679,-2707.16,0.00050136,120]
[331481437,1720438039715,-1487.69,0.00050136,120]
[331481438,1720438039753,-500.0,0.00050136,120]
[331481439,1720438039790,-1102.07,0.00050136,120]
[331481440,1720438039827,-1851.41,0.00050136,120]
[331481441,1720438039866,-500.0,0.00050136,120]
[331481442,1720438039906,-980.85,0.00050136,120]
[331481443,1720438039944,-500.0,0.00050136,120]
[331481444,1720438039982,-500.0,0.00050136,120]
[331481445,1720438040020,-500.0,0.00050136,120]
[331481446,1720438040059,-4705.08,0.00050136,120]
[331481447,1720438040096,-1550.67,0.00050136,120]
[331481448,1720438040132,-500.0,0.00050136,120]
[331481449,1720438040171,-500.0,0.00050136,120]
[331481450,1720438040210,-855.98,0.00050136,120]
[331481451,1720438040255,-500.0,0.00050136,120]
[331481452,1720438040294,-500.0,0.00050136,120]
[331481453,1720438040334,-500.0,0.00050136,120]
[331481454,1720438040372,-3524.54,0.00050136,120]
[331481455,1720438040409,-500.0,0.00050136,120]
[331481456,1720438040448,-500.0,0.00050136,120]
[331481457,1720438040487,-500.0,0.00050136,120]
[331481458,1720438040525,-500.0,0.00050136,120]
[331481459,1720438040562,-3542.65,0.00050136,120]
[331481460,1720438040600,-562.65119269,0.00050136,120]
[331481461,1720438040639,-500.0,0.00050136,120]
[331481462,1720438040677,-500.0,0.00050136,120]
[331481463,1720438040715,-569.31,0.00050136,120]
[331481464,1720438040754,-1404.03,0.00050136,120]
[331481465,1720438040792,-520.47,0.00050136,120]
[331481466,1720438040830,-500.0,0.00050136,120]
[331481467,1720438040868,-500.0,0.00050136,120]
[331481468,1720438040906,-500.0,0.00050136,120]
[331481469,1720438040944,-500.0,0.00050136,120]
[331481470,1720438040981,-1256.58,0.00050136,120]
[331481471,1720438041020,-500.0,0.00050136,120]
[331481472,1720438041058,-500.0,0.00050136,120]
[331481473,1720438041097,-500.0,0.00050136,120]
[331481474,1720438041134,-4775.84,0.00050136,120]
[331481475,1720438041173,-804.05,0.00050136,120]
[331481476,1720438041216,-500.0,0.00050136,120]
[331481477,1720438041255,-500.0,0.00050136,120]
[331481478,1720438041293,-2135.26,0.00050136,120]
[331481479,1720438041332,-500.0,0.00050136,120]
[331481480,1720438041369,-536.3,0.00050136,120]
[331481481,1720438041407,-802.42,0.00050136,120]
[331481482,1720438041444,-500.0,0.00050136,120]
[331481483,1720438041480,-500.0,0.00050136,120]
[331481484,1720438041518,-968.64,0.00050136,120]
[331481485,1720438041555,-319.5,0.00050136,120]
[331481486,1720438041593,-1082.19,0.00050136,120]
[331481487,1720438041630,-500.0,0.00050136,120]
[331481488,1720438041668,-500.0,0.00050136,120]
[331481489,1720438041707,-500.0,0.00050136,120]
[331481490,1720438041744,-500.0,0.00050136,120]
[331481491,1720438041780,-1570.5,0.00050136,120]
[331481492,1720438042002,-500.0,0.00050136,120]
[331481493,1720438042038,-500.0,0.00050136,120]
[331481494,1720438042074,-1935.41,0.00050136,120]
[331481495,1720438042108,-610.08,0.00050136,120]
[331481496,1720438042140,-500.0,0.00050136,120]
[331481497,1720438042174,-500.0,0.00050136,120]
[331481498,1720438042209,-500.0,0.00050136,120]
[331481499,1720438042243,-1670.66,0.00050136,120]
[331481500,1720438042278,-500.0,0.00050136,120]
[331481501,1720438042314,-500.0,0.00050136,120]
[331481502,1720438042346,-5085.83,0.00050136,120]
[331481503,1720438042379,-500.0,0.00050136,120]
[331481504,1720438042412,-500.0,0.00050136,120]
[331481505,1720438042447,-500.0,0.00050136,120]
[331481506,1720438042480,-500.0,0.00050136,120]
[331481507,1720438042514,-304.21,0.00050136,120]
[331481508,1720438042549,-500.0,0.00050136,120]
[331481509,1720438042584,-500.0,0.00050136,120]
[331481510,1720438042618,-500.0,0.00050136,120]
[331481511,1720438042653,-281.5882746,0.00050136,120]
[331481512,1720438042688,-500.0,0.00050136,120]
[331481513,1720438042722,-500.0,0.00050136,120]
[331481514,1720438042756,-500.0,0.00050136,120]
[331481515,1720438042794,-500.0,0.00050136,120]
[331481516,1720438042829,-771.26,0.00050136,120]
[331481517,1720438042864,-500.0,0.00050136,120]
[331481518,1720438042902,-500.0,0.00050136,120]
[331481519,1720438042938,-500.0,0.00050136,120]
[331481520,1720438042974,-20855.15,0.00050136,120]
[331481521,1720438043010,-813.82,0.00050136,120]
[331481522,1720438043042,-500.0,0.00050136,120]
[331481523,1720438043075,-500.0,0.00050136,120]
[331481524,1720438043110,-2200.14,0.00050136,120]
[331481525,1720438043144,-3881.42,0.00050136,120]
[331481526,1720438043178,-1326.11,0.00050136,120]
[331481527,1720438043213,-1256.69,0.00050136,120]
[331481528,1720438043251,-500.0,0.00050136,120]
[331481529,1720438043285,-500.0,0.00050136,120]
[331481530,1720438043319,-1747.96,0.00050136,120]
[331481531,1720438043354,-500.0,0.00050136,120]
[331481532,1720438043387,-500.0,0.00050136,120]
[331481533,1720438043419,-500.0,0.00050136,120]
[331481534,1720438043453,-500.0,0.00050136,120]
[331481535,1720438043487,-530.51,0.00050136,120]
[331481536,1720438043520,-500.0,0.00050136,120]
[331481537,1720438043555,-10457.36,0.00050136,120]
[331481538,1720438043592,-500.0,0.00050136,120]
[331481539,1720438043627,-500.0,0.00050136,120]
[331481540,1720438043662,-500.0,0.00050136,120]
[331481541,1720438043700,-3955.09,0.00050136,120]
[331481542,1720438043738,-500.0,0.00050136,120]
[331481543,1720438043773,-500.0,0.00050136,120]
[331481544,1720438043810,-941.75,0.00050136,120]
[331481545,1720438043849,-500.0,0.00050136,120]
[331481546,1720438043888,-500.0,0.00050136,120]
[331481547,1720438043926,-1163.07,0.00050136,120]